bitfinex/quotes_BTCUSD_20250711
["timestamp","ask_amount","ask_price","bid_price","bid_amount"]
[1752204300596,0.28751,116500.0,116490.0,0.13148]
[1752204301974,0.28751,116500.0,116490.0,0.14864877]
[1752204302196,0.28751,116500.0,116490.0,0.39630011]
[1752204302412,0.28751,116500.0,116490.0,0.13148]
[1752204303755,0.316261,116500.0,116490.0,0.13148]
[1752204304871,0.28751,116500.0,116490.0,0.13148]
[1752204307537,0.0319,116490.0,116480.0,0.00116474]
[1752204307748,0.03398,116490.0,116480.0,0.00116474]
[1752204307975,0.03721,116490.0,116480.0,0.13264474]
[1752204308199,0.03721,116490.0,116480.0,0.00116474]
[1752204308427,0.60743312,116490.0,116480.0,0.00116474]
[1752204308646,0.42804294,116490.0,116480.0,0.00116474]
[1752204308863,0.69286305,116490.0,116480.0,0.13268474]
[1752204309083,0.69286305,116490.0,116480.0,0.13368474]
[1752204309584,0.63746004,116490.0,116480.0,0.13368474]
[1752204310433,0.63746004,116490.0,116480.0,0.13268474]
[1752204310642,0.63846004,116490.0,116480.0,0.13268474]
[1752204310850,0.63946004,116490.0,116480.0,0.13268474]
[1752204311409,0.37463993,116490.0,116480.0,0.13268474]
[1752204313143,0.38363604,116490.0,116480.0,0.13268474]
[1752204314052,0.37463993,116490.0,116480.0,0.13268474]
[1752204314330,0.28921,116490.0,116480.0,0.13268474]
[1752204314847,0.28921,116490.0,116480.0,0.14985499]
[1752204315109,0.28921,116490.0,116480.0,0.15200491]
[1752204315368,0.25731,116490.0,116480.0,0.60569774]
[1752204315615,0.252,116490.0,116480.0,0.60569774]
[1752204316301,0.002,116490.0,116480.0,0.60569774]
[1752204316826,0.002,116490.0,116480.0,0.60569782]
[1752204317026,0.002,116490.0,116480.0,0.5971131]
[1752204317270,0.252,116490.0,116480.0,0.60569774]
[1752204318394,0.252,116490.0,116480.0,0.60569782]
[1752204318612,0.252,116490.0,116480.0,0.59711325]
[1752204318820,0.252,116490.0,116480.0,0.60569797]
[1752204319093,0.252,116490.0,116480.0,0.59711325]
[1752204319321,0.252,116490.0,116480.0,0.60569804]
[1752204319518,0.252,116490.0,116480.0,0.61428291]
[1752204319733,0.252,116490.0,116480.0,0.60569775]
[1752204319864,0.252,116490.0,116480.0,0.61428247]
[1752204320066,0.252,116490.0,116480.0,0.60569775]
[1752204320265,0.252,116490.0,116480.0,0.59711296]
[1752204320494,0.252,116490.0,116480.0,0.58852809]
[1752204320690,0.252,116490.0,116480.0,0.59711296]
[1752204321115,0.252,116490.0,116480.0,0.57994323]
[1752204321324,0.2675,116490.0,116480.0,0.58852817]
[1752204321663,0.2888,116490.0,116480.0,0.39965485]
[1752204322288,0.2888,116490.0,116480.0,0.40823994]
[1752204322711,0.26832566,116490.0,116480.0,0.40823994]
[1752204322908,0.26832566,116490.0,116480.0,0.40824001]
[1752204323120,0.26832566,116490.0,116480.0,0.4168251]
[1752204323535,0.26832566,116490.0,116480.0,0.40824001]
[1752204324174,0.26832566,116490.0,116480.0,0.4168251]
[1752204324354,0.2868,116490.0,116480.0,0.40824001]
[1752204324768,0.2868,116490.0,116480.0,0.39965485]
[1752204325221,0.2868,116490.0,116480.0,0.40824001]
[1752204325641,0.2868,116490.0,116480.0,0.13483474]
[1752204325848,0.2868,116490.0,116480.0,0.39965485]
[1752204326057,0.2868,116490.0,116480.0,0.13268474]
[1752204326487,0.2868,116490.0,116480.0,0.13304474]
[1752204327094,0.2868,116490.0,116480.0,0.00116474]
[1752204327298,0.2868,116490.0,116480.0,0.13304474]
[1752204328499,0.2868,116490.0,116480.0,0.00116474]
[1752204328713,0.2868,116490.0,116480.0,0.13300474]
[1752204332360,0.3372552,116490.0,116480.0,0.00116474]
[1752204332549,0.60207531,116490.0,116480.0,0.13296474]
[1752204332750,0.3372552,116490.0,116480.0,0.13296474]
[1752204332959,0.2868,116490.0,116480.0,0.13296474]
[1752204333880,0.2868,116490.0,116480.0,0.13229792]
[1752204343393,0.2868,116490.0,116480.0,0.39711803]
[1752204344374,0.2868,116490.0,116480.0,0.13229792]
[1752204351028,0.2868,116490.0,116480.0,0.39747598]
[1752204352870,0.2868,116490.0,116480.0,0.13229792]
[1752204353244,1.25168301,116490.0,116480.0,0.00049792]
[1752204353454,1.07999446,116490.0,116480.0,0.00049792]
[1752204353661,1.26026743,116490.0,116480.0,0.00049792]
[1752204354949,1.25196908,116490.0,116480.0,0.00049792]
[1752204355362,1.62705364,116490.0,116480.0,0.00049792]
[1752204356189,1.65129263,116490.0,116480.0,0.00049792]
[1752204356412,0.48531026,116470.0,116460.0,0.0134172]
[1752204356688,0.90241276,116470.0,116460.0,0.01346692]
[1752204356890,0.90547276,116470.0,116460.0,0.01346692]
[1752204357990,0.83977019,116470.0,116460.0,0.01346692]
[1752204358216,0.66805216,116470.0,116460.0,0.01346692]
[1752204358434,0.66905216,116470.0,116460.0,0.01346692]
[1752204358904,0.67763747,116470.0,116460.0,0.01346692]
[1752204359319,0.92763747,116470.0,116460.0,0.01346692]
[1752204359525,1.0130674,116470.0,116460.0,0.01346692]
[1752204359739,1.0216533,116470.0,116460.0,0.01346692]
[1752204359932,1.0226533,116470.0,116460.0,0.01346692]
[1752204360531,1.0140674,116470.0,116460.0,0.01346692]
[1752204361310,0.92863747,116470.0,116460.0,0.01346692]
[1752204361737,1.10035601,116470.0,116460.0,0.01346692]
[1752204361938,1.10035601,116470.0,116460.0,4.972e-05]
[1752204363262,0.92005216,116470.0,116460.0,4.972e-05]
[1752204363465,0.92863806,116470.0,116460.0,4.972e-05]
[1752204363628,1.00548209,116470.0,116460.0,4.972e-05]
[1752204365013,1.17720012,116470.0,116460.0,4.972e-05]
[1752204365492,1.16861459,116470.0,116460.0,4.972e-05]
[1752204366739,0.90329364,116470.0,116460.0,4.972e-05]
[1752204366917,1.16861459,116470.0,116460.0,4.972e-05]
[1752204368674,1.01406799,116470.0,116460.0,4.972e-05]
[1752204369215,0.92005172,116470.0,116460.0,4.972e-05]
[1752204369418,0.93722322,116470.0,116460.0,4.972e-05]
[1752204369627,0.9286374,116470.0,116460.0,4.972e-05]
[1752204369834,0.9372233,116470.0,116460.0,4.972e-05]
[1752204370031,0.9286374,116470.0,116460.0,4.972e-05]
[1752204370147,0.9372233,116470.0,116460.0,4.972e-05]
[1752204370354,0.93722322,116470.0,116460.0,4.972e-05]
[1752204371083,1.02265315,116470.0,116460.0,4.972e-05]
[1752204372504,1.18578587,116470.0,116460.0,4.972e-05]
[1752204372739,1.17720034,116470.0,116460.0,4.972e-05]
[1752204374437,1.16861466,116470.0,116460.0,4.972e-05]
[1752204374877,1.00548179,116470.0,116460.0,4.972e-05]
[1752204375086,1.01406754,116470.0,116460.0,4.972e-05]
[1752204375508,1.02265344,116470.0,116460.0,4.972e-05]
[1752204375959,1.01406754,116470.0,116460.0,4.972e-05]
[1752204376143,1.02265336,116470.0,116460.0,4.972e-05]
[1752204376980,1.03123926,116470.0,116460.0,4.972e-05]
[1752204377557,1.02265336,116470.0,116460.0,4.972e-05]
[1752204381264,0.75733241,116470.0,116460.0,4.972e-05]
[1752204381526,1.01406754,116470.0,116460.0,4.972e-05]
[1752204381711,1.02265344,116470.0,116460.0,4.972e-05]
[1752204381918,0.75733249,116470.0,116460.0,4.972e-05]
[1752204382062,1.02265344,116470.0,116460.0,4.972e-05]
[1752204382808,0.75733249,116470.0,116460.0,4.972e-05]
[1752204383160,1.01406806,116470.0,116460.0,4.972e-05]
[1752204385442,1.17720049,116470.0,116460.0,4.972e-05]
[1752204388054,1.16861474,116470.0,116460.0,4.972e-05]
[1752204388267,1.16002884,116470.0,116460.0,4.972e-05]
[1752204391870,1.18579784,116470.0,116460.0,4.972e-05]
[1752204397929,0.92047689,116470.0,116460.0,4.972e-05]
[1752204398139,1.18579784,116470.0,116460.0,4.972e-05]
[1752204401745,0.92047689,116470.0,116460.0,4.972e-05]
[1752204401973,1.18579784,116470.0,116460.0,4.972e-05]
[1752204406467,1.01407981,116470.0,116460.0,4.972e-05]
[1752204406640,0.80491519,116470.0,116460.0,4.972e-05]
[1752204406975,0.78237726,116470.0,116460.0,0.00204972]
[1752204407151,0.78237726,116470.0,116460.0,4.972e-05]
[1752204407152,0.79827726,116470.0,116460.0,4.972e-05]
[1752204407352,0.8407675,116470.0,116460.0,4.972e-05]
[1752204407553,0.84935281,116470.0,116460.0,4.972e-05]
[1752204408062,0.71775281,116470.0,116460.0,4.972e-05]
[1752204408268,0.85793819,116470.0,116460.0,4.972e-05]
[1752204408477,0.84935281,116470.0,116460.0,4.972e-05]
[1752204408887,0.84936133,116470.0,116460.0,4.972e-05]
[1752204409012,0.85794678,116470.0,116460.0,4.972e-05]
[1752204409215,0.58405509,116470.0,116460.0,4.972e-05]
[1752204409418,0.85794663,116470.0,116460.0,4.972e-05]
[1752204410624,0.84936125,116470.0,116460.0,4.972e-05]
[1752204411067,0.85794663,116470.0,116460.0,4.972e-05]
[1752204411819,0.86653208,116470.0,116460.0,4.972e-05]
[1752204412896,0.89021768,116470.0,116460.0,4.972e-05]
[1752204413111,0.88163208,116470.0,116460.0,4.972e-05]
[1752204413314,0.87304663,116470.0,116460.0,4.972e-05]
[1752204413780,0.88163208,116470.0,116460.0,4.972e-05]
[1752204416355,0.87304663,116470.0,116460.0,4.972e-05]
[1752204416557,0.86446125,116470.0,116460.0,4.972e-05]
[1752204416730,0.85794656,116470.0,116460.0,4.972e-05]
[1752204416971,0.86653201,116470.0,116460.0,4.972e-05]
[1752204417177,0.87511761,116470.0,116460.0,4.972e-05]
[1752204417390,0.86653201,116470.0,116460.0,4.972e-05]
[1752204418251,0.84936125,116470.0,116460.0,4.972e-05]
[1752204418469,0.85794663,116470.0,116460.0,4.972e-05]
[1752204418679,0.84936125,116470.0,116460.0,4.972e-05]
[1752204418895,0.6088404,116470.0,116460.0,4.972e-05]
[1752204419104,0.84077602,116470.0,116460.0,4.972e-05]
[1752204419317,0.84936133,116470.0,116460.0,4.972e-05]
[1752204419567,0.84936125,116470.0,116460.0,4.972e-05]
[1752204420196,0.85794663,116470.0,116460.0,4.972e-05]
[1752204420402,0.76393132,116470.0,116460.0,4.972e-05]
[1752204420616,0.7725167,116470.0,116460.0,4.972e-05]
[1752204421595,0.7881167,116470.0,116460.0,4.972e-05]
[1752204422372,0.77094609,116470.0,116460.0,4.972e-05]
[1752204422575,0.82240243,116470.0,116460.0,4.972e-05]
[1752204423251,0.83098796,116470.0,116460.0,4.972e-05]
[1752204424074,0.82240243,116470.0,116460.0,4.972e-05]
[1752204424899,0.83098796,116470.0,116460.0,4.972e-05]
[1752204425316,0.81381698,116470.0,116460.0,4.972e-05]
[1752204426047,0.82240236,116470.0,116460.0,4.972e-05]
[1752204426255,0.81381698,116470.0,116460.0,4.972e-05]
[1752204426465,0.82240243,116470.0,116460.0,4.972e-05]
[1752204426672,0.83098796,116470.0,116460.0,4.972e-05]
[1752204426992,0.55709627,116470.0,116460.0,4.972e-05]
[1752204427203,0.82240243,116470.0,116460.0,4.972e-05]
[1752204427578,0.83098796,116470.0,116460.0,4.972e-05]
[1752204428874,0.83101233,116470.0,116460.0,4.972e-05]
[1752204430533,0.8224268,116470.0,116460.0,4.972e-05]
[1752204432165,0.8310124,116470.0,116460.0,4.972e-05]
[1752204432513,0.8224268,116470.0,116460.0,4.972e-05]
[1752204432719,0.8310124,116470.0,116460.0,4.972e-05]
[1752204433363,0.83959822,116470.0,116460.0,4.972e-05]
[1752204434107,0.83959815,116470.0,116460.0,4.972e-05]
[1752204434763,0.8310124,116470.0,116460.0,4.972e-05]
[1752204435406,0.83959808,116470.0,116460.0,4.972e-05]
[1752204435574,0.8224268,116470.0,116460.0,4.972e-05]
[1752204436199,0.8310124,116470.0,116460.0,4.972e-05]
[1752204436404,0.55709627,116470.0,116460.0,4.972e-05]
[1752204436540,0.8224268,116470.0,116460.0,4.972e-05]
[1752204436756,0.8310124,116470.0,116460.0,4.972e-05]
[1752204436975,0.83101233,116470.0,116460.0,4.972e-05]
[1752204437179,0.83959801,116470.0,116460.0,4.972e-05]
[1752204437966,0.84818383,116470.0,116460.0,4.972e-05]
[1752204438170,0.83959801,116470.0,116460.0,4.972e-05]
[1752204438377,0.84818376,116470.0,116460.0,4.972e-05]
[1752204438999,0.83959801,116470.0,116460.0,4.972e-05]
[1752204440065,0.84818376,116470.0,116460.0,4.972e-05]
[1752204440223,0.83959801,116470.0,116460.0,4.972e-05]
[1752204440587,1.17959801,116470.0,116460.0,4.972e-05]
[1752204442747,0.83959793,116470.0,116460.0,4.972e-05]
[1752204444313,0.84818361,116470.0,116460.0,4.972e-05]
[1752204444520,0.8395983,116470.0,116460.0,4.972e-05]
[1752204446463,0.84818412,116470.0,116460.0,4.972e-05]
[1752204446613,0.8395983,116470.0,116460.0,4.972e-05]
[1752204447136,0.83101262,116470.0,116460.0,4.972e-05]
[1752204447340,0.83959837,116470.0,116460.0,4.972e-05]
[1752204449726,0.84818427,116470.0,116460.0,4.972e-05]
[1752204449919,0.83959837,116470.0,116460.0,4.972e-05]
[1752204450124,0.83101262,116470.0,116460.0,4.972e-05]
[1752204450328,0.8481842,116470.0,116460.0,4.972e-05]
[1752204450544,0.8395983,116470.0,116460.0,4.972e-05]
[1752204451111,0.84818412,116470.0,116460.0,4.972e-05]
[1752204451741,0.83959867,116470.0,116460.0,4.972e-05]
[1752204451987,0.84818457,116470.0,116460.0,4.972e-05]
[1752204452403,0.83959867,116470.0,116460.0,4.972e-05]
[1752204453120,0.57426814,116470.0,116460.0,4.972e-05]
[1752204453322,0.83959867,116470.0,116460.0,4.972e-05]
[1752204453559,0.84818457,116470.0,116460.0,4.972e-05]
[1752204453768,0.83959867,116470.0,116460.0,4.972e-05]
[1752204454153,0.82242717,116470.0,116460.0,4.972e-05]
[1752204454360,0.83101292,116470.0,116460.0,4.972e-05]
[1752204455188,0.83959874,116470.0,116460.0,4.972e-05]
[1752204456529,0.57426821,116470.0,116460.0,4.972e-05]
[1752204456763,0.83959874,116470.0,116460.0,4.972e-05]
[1752204456979,1.61401702,116470.0,116460.0,4.972e-05]
[1752204457199,1.90511755,116470.0,116460.0,4.972e-05]
[1752204457453,1.10912596,116470.0,116460.0,4.972e-05]
[1752204457650,1.50818702,116470.0,116460.0,4.972e-05]
[1752204458751,1.63970702,116470.0,116460.0,4.972e-05]
[1752204459603,1.10904596,116470.0,116460.0,4.972e-05]
[1752204459815,1.63970702,116470.0,116460.0,4.972e-05]
[1752204463507,1.10904596,116470.0,116460.0,4.972e-05]
[1752204463751,1.32555006,116470.0,116460.0,4.972e-05]
[1752204464399,1.15383203,116470.0,116460.0,4.972e-05]
[1752204464647,1.00514046,116470.0,116460.0,4.972e-05]
[1752204464946,1.0238825,116470.0,116460.0,4.972e-05]
[1752204465177,1.14808832,116470.0,116460.0,4.972e-05]
[1752204465392,1.23351825,116470.0,116460.0,4.972e-05]
[1752204465864,1.22493243,116470.0,116460.0,0.00206972]
[1752204466734,1.23351833,116470.0,116460.0,0.00206972]
[1752204466919,1.24023302,116470.0,116460.0,4.972e-05]
[1752204468611,1.14621719,116470.0,116460.0,4.972e-05]
[1752204468838,1.13091719,116470.0,116460.0,4.972e-05]
[1752204469041,1.13950309,116470.0,116460.0,4.972e-05]
[1752204469266,1.15560309,116470.0,116460.0,4.972e-05]
[1752204469886,1.13091712,116470.0,116460.0,4.972e-05]
[1752204470090,1.12233144,116470.0,116460.0,0.00206972]
[1752204470290,1.21634705,116470.0,116460.0,0.00206972]
[1752204470490,1.2163469,116470.0,116460.0,4.972e-05]
[1752204470731,1.2318469,116470.0,116460.0,4.972e-05]
[1752204471870,1.24043272,116470.0,116460.0,4.972e-05]
[1752204472677,1.2318469,116470.0,116460.0,4.972e-05]
[1752204472879,1.24043265,116470.0,116460.0,4.972e-05]
[1752204473086,1.23046265,116470.0,116460.0,4.972e-05]
[1752204473293,0.97371802,116470.0,116460.0,4.972e-05]
[1752204473656,1.23904855,116470.0,116460.0,4.972e-05]
[1752204476073,1.23046317,116470.0,116460.0,4.972e-05]
[1752204476269,1.39359575,116470.0,116460.0,4.972e-05]
[1752204476750,1.65892628,116470.0,116460.0,4.972e-05]
[1752204480511,1.6503406,116470.0,116460.0,4.972e-05]
[1752204481535,1.6761076,116470.0,116460.0,4.972e-05]
[1752204481867,1.6503406,116470.0,116460.0,4.972e-05]
[1752204482446,1.3103406,116470.0,116460.0,4.972e-05]
[1752204483794,0.77967954,116470.0,116460.0,4.972e-05]
[1752204483970,1.3103406,116470.0,116460.0,4.972e-05]
[1752204486172,1.04501007,116470.0,116460.0,4.972e-05]
[1752204487474,1.3103406,116470.0,116460.0,4.972e-05]
[1752204491357,0.95958014,116470.0,116460.0,4.972e-05]
[1752204493349,1.22491067,116470.0,116460.0,4.972e-05]
[1752204495420,1.22491067,116470.0,116450.0,0.00065427]
[1752204495421,0.22596012,116460.0,116450.0,0.00065427]
[1752204495620,1.29184023,116460.0,116450.0,0.00070398]
[1752204495826,1.37727016,116460.0,116450.0,0.00070398]
[1752204496467,1.38027016,116460.0,116450.0,0.00070398]
[1752204496845,1.11527543,116460.0,116450.0,0.00070398]
[1752204497455,1.36527543,116460.0,116450.0,0.00070398]
[1752204499252,1.76527543,116460.0,116450.0,0.00070398]
[1752204499755,1.74306587,116460.0,116450.0,0.00070398]
[1752204500370,1.74506587,116460.0,116450.0,0.00070398]
[1752204505625,1.34506587,116460.0,116450.0,0.00070398]
[1752204506052,1.21358587,116460.0,116450.0,0.00070398]
[1752204506258,0.37451493,116460.0,116450.0,0.00281398]
[1752204506458,0.37451493,116460.0,116450.0,0.03666398]
[1752204506459,0.34042993,116460.0,116450.0,0.03666398]
[1752204506687,0.47186993,116460.0,116450.0,0.03666398]
[1752204507212,0.50196844,116460.0,116450.0,0.03666398]
[1752204507813,0.4804559,116460.0,116450.0,0.03666398]
[1752204508053,0.47186993,116460.0,116450.0,0.03451398]
[1752204508830,0.34042993,116460.0,116450.0,0.03451398]
[1752204509102,0.47186993,116460.0,116450.0,0.03451398]
[1752204509896,0.75454045,116460.0,116450.0,0.03451398]
[1752204510057,0.83997038,116460.0,116450.0,0.01901398]
[1752204510505,0.56588583,116460.0,116450.0,0.01901398]
[1752204510714,0.74595433,116460.0,116450.0,0.01901398]
[1752204510904,0.73736836,116460.0,116450.0,0.01901398]
[1752204512634,0.7459544,116460.0,116450.0,0.01901398]
[1752204513402,0.73736836,116460.0,116450.0,0.01901398]
[1752204514601,0.7459544,116460.0,116450.0,0.01901398]
[1752204514802,0.82344657,116460.0,116450.0,0.01901398]
[1752204515546,0.81486053,116460.0,116450.0,0.01901398]
[1752204515746,0.8234465,116460.0,116450.0,0.01901398]
[1752204516263,0.73736836,116460.0,116450.0,0.01941398]
[1752204516474,0.4804559,116460.0,116450.0,0.01941398]
[1752204516877,0.47186993,116460.0,116450.0,0.01941398]
[1752204517102,0.47186993,116460.0,116450.0,0.03541398]
[1752204517300,0.34042993,116460.0,116450.0,0.03541398]
[1752204517504,0.47182993,116460.0,116450.0,0.03541398]
[1752204517836,0.73732836,116460.0,116450.0,0.03541398]
[1752204518602,0.47182993,116460.0,116450.0,0.03541398]
[1752204518946,0.73732836,116460.0,116450.0,0.03541398]
[1752204519635,0.74591433,116460.0,116450.0,0.03541398]
[1752204519806,0.49006252,116460.0,116450.0,0.01941398]
[1752204520171,0.75556095,116460.0,116450.0,0.01941398]
[1752204520327,0.73732836,116460.0,116450.0,0.01941398]
[1752204520968,0.47182993,116460.0,116450.0,0.01941398]
[1752204521162,0.73732836,116460.0,116450.0,0.01941398]
[1752204521589,0.47182993,116460.0,116450.0,0.01941398]
[1752204521728,0.73732836,116460.0,116450.0,0.01941398]
[1752204522953,0.60592836,116460.0,116450.0,0.01941398]
[1752204523150,0.7459144,116460.0,116450.0,0.01941398]
[1752204523447,0.47182993,116460.0,116450.0,0.01941398]
[1752204523884,0.255,116460.0,116450.0,0.01941398]
[1752204524135,0.255,116460.0,116450.0,0.03736398]
[1752204525186,0.255,116460.0,116450.0,0.03521398]
[1752204525397,0.252,116460.0,116450.0,0.03521398]
[1752204525624,0.253,116460.0,116450.0,0.03521398]
[1752204525978,0.29720329,116460.0,116450.0,0.03521398]
[1752204527385,0.253,116460.0,116450.0,0.03521398]
[1752204528000,0.251,116460.0,116450.0,0.03521398]
[1752204528420,0.252,116460.0,116450.0,0.03521398]
[1752204528833,0.252,116460.0,116450.0,0.43422241]
[1752204529288,0.252,116460.0,116450.0,0.62314431]
[1752204529472,0.002,116460.0,116450.0,0.61455724]
[1752204529679,0.002,116460.0,116450.0,0.62314446]
[1752204530312,0.002,116460.0,116450.0,0.63173161]
[1752204531734,0.001,116460.0,116450.0,0.64031869]
[1752204531927,0.001,116460.0,116450.0,0.43422241]
[1752204532161,0.001,116460.0,116450.0,0.44280963]
[1752204533698,0.25,116470.0,116450.0,0.60654431]
[1752204533894,0.25,116470.0,116460.0,0.0164]
[1752204534152,0.25,116470.0,116460.0,0.0184]
[1752204535212,0.251,116470.0,116460.0,0.0184]
[1752204536374,0.252,116470.0,116460.0,0.0184]
[1752204538968,0.252,116470.0,116460.0,0.30174843]
[1752204539183,0.252,116470.0,116460.0,0.48206777]
[1752204539417,0.002,116470.0,116460.0,0.48206777]
[1752204539626,0.002,116470.0,116460.0,0.49065426]
[1752204539770,0.002,116470.0,116460.0,0.47348121]
[1752204539977,0.002,116470.0,116460.0,0.32750811]
[1752204540184,0.002,116470.0,116460.0,0.50782716]
[1752204540501,0.002,116470.0,116460.0,0.5078273]
[1752204540986,0.001,116470.0,116460.0,0.5078273]
[1752204541192,0.25,116480.0,116460.0,0.23374246]
[1752204541401,0.25,116480.0,116470.0,0.13132]
[1752204541570,0.25,116480.0,116470.0,0.13332]
[1752204543007,0.25,116480.0,116470.0,0.14912]
[1752204543930,0.251,116480.0,116470.0,0.14912]
[1752204544540,0.251,116480.0,116470.0,0.002]
[1752204544751,0.29635499,116480.0,116470.0,0.002]
[1752204544955,0.29833499,116480.0,116470.0,0.13332]
[1752204545166,0.29933499,116480.0,116470.0,0.13332]
[1752204546180,0.25699,116480.0,116470.0,0.13332]
[1752204550363,0.27349,116480.0,116470.0,0.13332]
[1752204554421,0.252,116480.0,116470.0,0.13332]
[1752204554644,0.252,116480.0,116470.0,0.14862]
[1752204554848,0.252,116480.0,116470.0,0.41411843]
[1752204556080,0.252,116480.0,116470.0,0.42485418]
[1752204556280,0.002,116480.0,116470.0,0.44145425]
[1752204557535,0.002,116480.0,116470.0,0.62175803]
[1752204558163,0.002,116480.0,116470.0,0.61317228]
[1752204558310,0.002,116480.0,116470.0,0.62175803]
[1752204558517,0.002,116480.0,116470.0,0.61317228]
[1752204559053,0.002,116480.0,116470.0,0.41626843]
[1752204559596,0.002,116480.0,116470.0,0.42485433]
[1752204561423,0.002,116480.0,116470.0,0.60515811]
[1752204561643,0.002,116480.0,116470.0,0.62025811]
[1752204562217,0.002,116480.0,116470.0,0.62884379]
[1752204562424,0.002,116480.0,116470.0,0.62025811]
[1752204562625,0.002,116480.0,116470.0,0.62884379]
[1752204563066,0.001,116480.0,116470.0,0.62025811]
[1752204563252,0.001,116480.0,116470.0,0.62984379]
[1752204563537,0.25,116490.0,116470.0,0.37293096]
[1752204563975,0.25,116490.0,116470.0,0.62984379]
[1752204564207,0.25,116490.0,116470.0,0.63842939]
[1752204564425,0.28611,116500.0,116480.0,0.44793317]
[1752204564636,0.28611,116500.0,116490.0,0.13124]
[1752204564841,0.28813,116500.0,116490.0,0.13124]
[1752204566352,0.29013,116500.0,116490.0,0.13124]
[1752204569366,0.29113,116500.0,116490.0,0.13124]
[1752204569792,0.29013,116500.0,116490.0,0.13124]
[1752204569986,0.252,116500.0,116490.0,0.13321]
[1752204570247,0.254,116500.0,116490.0,0.13321]
[1752204570448,0.254,116500.0,116490.0,0.39870843]
[1752204571090,0.252,116500.0,116490.0,0.13321]
[1752204571268,0.253,116500.0,116490.0,0.13321]
[1752204571695,0.25599,116500.0,116490.0,0.13321]
[1752204572875,0.27149,116500.0,116490.0,0.13321]
[1752204573277,0.26949,116500.0,116490.0,0.13321]
[1752204573636,0.27049,116500.0,116490.0,0.13321]
[1752204576600,0.27049,116500.0,116490.0,0.39870843]
[1752204577043,0.27049,116500.0,116490.0,0.13321]
[1752204577452,0.252,116500.0,116490.0,0.61664547]
[1752204577655,0.252,116500.0,116490.0,0.36480094]
[1752204578003,0.252,116500.0,116490.0,0.63029937]
[1752204578405,0.002,116500.0,116490.0,0.63029937]
[1752204578539,0.001,116500.0,116490.0,0.63029937]
[1752204579545,0.25,116510.0,116500.0,0.18884081]
[1752204579701,0.25,116510.0,116500.0,0.48109248]
[1752204579906,0.25,116510.0,116500.0,0.48967565]
[1752204580310,0.28299,116520.0,116500.0,0.49825875]
[1752204580518,0.28299,116520.0,116510.0,0.1312]
[1752204580734,0.28501,116520.0,116510.0,0.13979196]
[1752204580943,0.28501,116520.0,116510.0,0.1312]
[1752204582152,0.28501,116520.0,116500.0,0.26549843]
[1752204582386,0.28501,116520.0,116510.0,0.1312]
[1752204582546,0.28701,116520.0,116510.0,0.1312]
[1752204582753,0.28901,116520.0,116510.0,0.13317]
[1752204582940,0.28501,116520.0,116510.0,0.13317]
[1752204583341,0.28701,116520.0,116510.0,0.13317]
[1752204583589,0.28601,116520.0,116510.0,0.13317]
[1752204584092,0.28701,116520.0,116510.0,0.13317]
[1752204585810,0.28951,116520.0,116510.0,0.13317]
[1752204587066,0.28951,116520.0,116510.0,0.15033583]
[1752204587260,0.28951,116520.0,116510.0,0.14175295]
[1752204587534,0.28951,116520.0,116510.0,0.13317]
[1752204587775,0.2683,116520.0,116510.0,0.40725131]
[1752204587995,0.252,116520.0,116510.0,0.40725123]
[1752204588244,0.252,116520.0,116510.0,0.43825123]
[1752204588474,0.002,116520.0,116510.0,0.62922547]
[1752204589171,0.002,116520.0,116510.0,0.6378079]
[1752204589421,0.001,116520.0,116510.0,0.6378079]
[1752204589660,0.001,116520.0,116510.0,0.61332547]
[1752204589908,0.0324,116530.0,116510.0,0.61332547]
[1752204590430,0.03539,116530.0,116510.0,0.6219079]
[1752204590649,0.03539,116530.0,116510.0,0.61332554]
[1752204590880,0.03539,116530.0,116520.0,0.13116]
[1752204591068,0.0374,116530.0,116510.0,0.18024196]
[1752204591278,0.0374,116530.0,116520.0,0.13116]
[1752204591504,0.2874,116530.0,116520.0,0.13116]
[1752204592594,0.2884,116530.0,116520.0,0.13116]
[1752204596911,0.53789843,116530.0,116500.0,0.47571328]
[1752204597145,0.0324,116510.0,116500.0,0.34]
[1752204597378,0.0324,116500.0,116470.0,0.45653473]
[1752204597594,0.01874,116490.0,116480.0,0.13112]
[1752204597809,0.30284843,116490.0,116470.0,0.11118393]
[1752204598021,0.03534,116480.0,116470.0,0.01341689]
[1752204598230,0.03735,116480.0,116470.0,0.15312279]
[1752204598449,0.03735,116480.0,116470.0,0.01341689]
[1752204598664,0.03735,116480.0,116470.0,0.14650689]
[1752204598877,0.03735,116480.0,116470.0,0.48650689]
[1752204599115,0.03735,116480.0,116470.0,0.14650689]
[1752204599517,0.03735,116480.0,116470.0,0.47309]
[1752204600374,0.28735,116480.0,116470.0,0.34197]
[1752204600637,0.25,116480.0,116470.0,1.05814319]
[1752204601537,0.28514,116500.0,116480.0,0.00858516]
[1752204601749,0.00495,116490.0,116470.0,0.63576938]
[1752204601958,0.03715,116490.0,116480.0,0.13112]
[1752204602195,0.03715,116490.0,116470.0,0.90985334]
[1752204602388,0.03715,116490.0,116480.0,0.13112]
[1752204602601,0.03715,116490.0,116480.0,0.13309]
[1752204602806,0.03715,116490.0,116480.0,0.14167516]
[1752204603012,0.03715,116490.0,116480.0,0.13309]
[1752204603519,0.03715,116490.0,116480.0,0.14167516]
[1752204603732,0.03715,116490.0,116480.0,0.15026025]
[1752204603959,0.03715,116490.0,116480.0,0.14167516]
[1752204604171,0.02145,116490.0,116480.0,0.15226025]
[1752204604614,0.01851,116490.0,116480.0,0.41775868]
[1752204604823,0.01851,116490.0,116480.0,0.42634369]
[1752204605025,0.01851,116490.0,116480.0,0.40917359]
[1752204605268,0.01851,116490.0,116480.0,0.4177586]
[1752204605483,0.01851,116490.0,116480.0,0.41775868]
[1752204605894,0.01851,116490.0,116480.0,0.41217359]
[1752204606101,0.01851,116490.0,116480.0,0.42075868]
[1752204606905,0.01851,116490.0,116480.0,0.41217359]
[1752204607116,0.01851,116490.0,116480.0,0.42075868]
[1752204607874,0.01851,116490.0,116480.0,0.41217359]
[1752204608080,0.01851,116490.0,116480.0,0.13809]
[1752204608294,0.03725,116490.0,116480.0,0.40358843]
[1752204608713,0.03725,116490.0,116480.0,0.41217359]
[1752204608924,0.03725,116490.0,116480.0,0.13809]
[1752204610269,0.03725,116490.0,116480.0,0.40358843]
[1752204610887,0.03725,116490.0,116480.0,0.41217359]
[1752204611155,0.03725,116490.0,116480.0,0.4207586]
[1752204611362,0.03725,116490.0,116480.0,0.42075868]
[1752204611768,0.0165,116490.0,116480.0,0.42934369]
[1752204612178,0.0165,116490.0,116480.0,0.59246197]
[1752204612366,0.0165,116490.0,116480.0,0.60104698]
[1752204612572,0.0165,116490.0,116480.0,0.59246197]
[1752204612776,0.0165,116490.0,116480.0,0.60104698]
[1752204613245,0.0165,116490.0,116480.0,0.61821664]
[1752204613459,0.28574,116500.0,116480.0,0.60104676]
[1752204614077,0.28574,116500.0,116480.0,0.61821642]